[Event "Titled Tuesday Blitz June 20 Early 2023"]
[White "Jaracz, Pawel"]
[Black "i_like_explosions"]
[WhiteFideId "1102222"]
[WhiteElo "2454"]
[BlackElo "2382"]
[Result "0-1"]
[Round "1"]
[TimeControl "180+2"]
[Date "2023.06.20"]
[WhiteClock "0:00:40"]
[BlackClock "0:00:18"]
[Board "127"]

1. e4 {[%clk 0:02:55]}  c5 {[%clk 0:02:57]} 2. Nf3 {[%clk 0:02:55]}  Nc6 {[%clk 0:02:55]} 3. d4 {[%clk 0:02:55]}  cxd4 {[%clk 0:02:56]} 4. Nxd4 {[%clk 0:02:55]}  Nf6 {[%clk 0:02:56]} 5. Nc3 {[%clk 0:02:54]}  e5 {[%clk 0:02:56]} 6. Ndb5 {[%clk 0:02:53]}  d6 {[%clk 0:02:56]} 7. Bg5 {[%clk 0:02:53]}  a6 {[%clk 0:02:56]} 8. Na3 {[%clk 0:02:53]}  b5 {[%clk 0:02:56]} 9. Nd5 {[%clk 0:02:53]}  Be7 {[%clk 0:02:56]} 10. Bxf6 {[%clk 0:02:54]}  Bxf6 {[%clk 0:02:56]} 11. Nb1 {[%clk 0:02:54]}  O-O {[%clk 0:02:52]} 12. Nd2 {[%clk 0:02:52]}  Rb8 {[%clk 0:02:51]} 13. Nf3 {[%clk 0:02:50]}  Be6 {[%clk 0:02:45]} 14. c3 {[%clk 0:02:47]}  Bg5 {[%clk 0:02:41]} 15. Be2 {[%clk 0:02:46]}  Bh6 {[%clk 0:02:40]} 16. O-O {[%clk 0:02:46]}  Ne7 {[%clk 0:02:41]} 17. Nxe7+ {[%clk 0:02:41]}  Qxe7 {[%clk 0:02:41]} 18. Ne1 {[%clk 0:02:32]}  Rfd8 {[%clk 0:02:40]} 19. Bf3 {[%clk 0:02:32]}  b4 {[%clk 0:02:30]} 20. cxb4 {[%clk 0:02:26]}  Rxb4 {[%clk 0:02:31]} 21. Nd3 {[%clk 0:02:26]}  Rd4 {[%clk 0:02:31]} 22. Qe2 {[%clk 0:02:19]}  Qb7 {[%clk 0:02:01]} 23. b3 {[%clk 0:02:14]}  Rc8 {[%clk 0:01:54]} 24. Rfd1 {[%clk 0:02:11]}  Rc3 {[%clk 0:01:50]} 25. Ne1 {[%clk 0:02:03]}  g6 {[%clk 0:01:25]} 26. Rxd4 {[%clk 0:02:01]}  exd4 {[%clk 0:01:26]} 27. Rd1 {[%clk 0:02:01]}  Bg7 {[%clk 0:01:21]} 28. Bg4 {[%clk 0:01:50]}  Qb5 {[%clk 0:01:02]} 29. Qxb5 {[%clk 0:01:45]}  axb5 {[%clk 0:01:03]} 30. Bxe6 {[%clk 0:01:45]}  fxe6 {[%clk 0:01:04]} 31. Kf1 {[%clk 0:01:42]}  Kf7 {[%clk 0:01:01]} 32. Ke2 {[%clk 0:01:42]}  Ke7 {[%clk 0:01:00]} 33. g3 {[%clk 0:01:41]}  e5 {[%clk 0:00:58]} 34. Nd3 {[%clk 0:01:31]}  Bh6 {[%clk 0:00:57]} 35. f4 {[%clk 0:01:28]}  Ke6 {[%clk 0:00:52]} 36. Rf1 {[%clk 0:01:27]}  Rc2+ {[%clk 0:00:50]} 37. Kf3 {[%clk 0:01:17]}  Rxa2 {[%clk 0:00:49]} 38. Rc1 {[%clk 0:01:11]}  Rd2 {[%clk 0:00:41]} 39. Nf2 {[%clk 0:01:09]}  exf4 {[%clk 0:00:40]} 40. Ng4 {[%clk 0:01:09]}  Bg5 {[%clk 0:00:30]} 41. gxf4 {[%clk 0:01:08]}  Be7 {[%clk 0:00:28]} 42. Nf2 {[%clk 0:01:06]}  Rb2 {[%clk 0:00:27]} 43. Rd1 {[%clk 0:01:02]}  Rxb3+ {[%clk 0:00:28]} 44. Nd3 {[%clk 0:01:01]}  Rc3 {[%clk 0:00:27]} 45. Ke2 {[%clk 0:01:00]}  Rc2+ {[%clk 0:00:26]} 46. Kf3 {[%clk 0:00:59]}  Rxh2 {[%clk 0:00:25]} 47. Rb1 {[%clk 0:00:59]}  Rh3+ {[%clk 0:00:22]} 48. Ke2 {[%clk 0:00:59]}  Re3+ {[%clk 0:00:23]} 49. Kd2 {[%clk 0:00:59]}  d5 {[%clk 0:00:22]} 50. e5 {[%clk 0:00:53]}  b4 {[%clk 0:00:21]} 51. Ra1 {[%clk 0:00:52]}  Rh3 {[%clk 0:00:18]} 52. Ra6+ {[%clk 0:00:52]}  Kf5 {[%clk 0:00:19]} 53. Ra7 {[%clk 0:00:49]}  Rh2+ {[%clk 0:00:19]} 54. Kd1 {[%clk 0:00:49]}  Bh4 {[%clk 0:00:18]} 55. Rf7+ {[%clk 0:00:48]}  Ke4 {[%clk 0:00:19]} 56. Nc5+ {[%clk 0:00:48]}  Ke3 {[%clk 0:00:19]} 57. e6 {[%clk 0:00:47]}  d3 {[%clk 0:00:19]} 58. Kc1 {[%clk 0:00:43]}  d2+ {[%clk 0:00:17]} 59. Kc2 {[%clk 0:00:43]}  Rh1 {[%clk 0:00:17]} 60. e7 {[%clk 0:00:40]}  d1=Q+ {[%clk 0:00:17]} 61. Kb2 {[%clk 0:00:40]}  Rh2# {[%clk 0:00:18]} 0-1


[Site "https://www.chess.com"]

[Event "Titled Tuesday Blitz June 20 Early 2023"]
[White "Vaibhav Jayant Raut"]
[Black "Melikhov, Evgeny V."]
[WhiteFideId "5089034"]
[BlackFideId "4122046"]
[WhiteElo "2156"]
[BlackElo "2158"]
[Result "1-0"]
[Round "1"]
[TimeControl "180+2"]
[Date "2023.06.20"]
[WhiteClock "0:00:21"]
[BlackClock "0:00:15"]
[Board "131"]

1. d4 {[%clk 0:02:59]}  Nf6 {[%clk 0:02:59]} 2. Nf3 {[%clk 0:02:59]}  d5 {[%clk 0:02:59]} 3. Bf4 {[%clk 0:02:59]}  e6 {[%clk 0:02:55]} 4. e3 {[%clk 0:02:59]}  Bd6 {[%clk 0:02:55]} 5. Bg3 {[%clk 0:02:59]}  O-O {[%clk 0:02:53]} 6. Nbd2 {[%clk 0:02:59]}  c5 {[%clk 0:02:52]} 7. c3 {[%clk 0:02:59]}  Qc7 {[%clk 0:02:51]} 8. Ne5 {[%clk 0:02:57]}  Nbd7 {[%clk 0:02:47]} 9. f4 {[%clk 0:02:56]}  Re8 {[%clk 0:02:31]} 10. Bd3 {[%clk 0:02:54]}  Nf8 {[%clk 0:02:30]} 11. O-O {[%clk 0:02:52]}  b6 {[%clk 0:02:26]} 12. Bh4 {[%clk 0:02:50]}  Ng6 {[%clk 0:02:20]} 13. Bg3 {[%clk 0:02:38]}  a5 {[%clk 0:02:17]} 14. Qe2 {[%clk 0:02:37]}  Bb7 {[%clk 0:01:59]} 15. h4 {[%clk 0:02:34]}  Ne4 {[%clk 0:01:57]} 16. Nxe4 {[%clk 0:02:28]}  dxe4 {[%clk 0:01:57]} 17. Bb5 {[%clk 0:02:28]}  Red8 {[%clk 0:01:47]} 18. h5 {[%clk 0:02:28]}  Ne7 {[%clk 0:01:47]} 19. Bh4 {[%clk 0:02:25]}  f6 {[%clk 0:01:46]} 20. Nc4 {[%clk 0:02:23]}  Nf5 {[%clk 0:01:45]} 21. Bf2 {[%clk 0:02:21]}  h6 {[%clk 0:01:28]} 22. g4 {[%clk 0:02:14]}  Ne7 {[%clk 0:01:26]} 23. Rac1 {[%clk 0:02:10]}  Bc6 {[%clk 0:01:22]} 24. Nxd6 {[%clk 0:02:07]}  Rxd6 {[%clk 0:01:17]} 25. Bg3 {[%clk 0:02:05]}  Bxb5 {[%clk 0:01:11]} 26. Qxb5 {[%clk 0:02:05]}  Qc6 {[%clk 0:01:10]} 27. Qe2 {[%clk 0:02:05]}  Rd7 {[%clk 0:01:05]} 28. Rf2 {[%clk 0:02:03]}  cxd4 {[%clk 0:01:03]} 29. exd4 {[%clk 0:02:00]}  b5 {[%clk 0:01:02]} 30. Re1 {[%clk 0:02:00]}  f5 {[%clk 0:01:01]} 31. g5 {[%clk 0:01:58]}  Qc4 {[%clk 0:00:55]} 32. Qd1 {[%clk 0:01:39]}  Nd5 {[%clk 0:00:47]} 33. Rg2 {[%clk 0:01:31]}  Kh7 {[%clk 0:00:42]} 34. Kh2 {[%clk 0:01:16]}  Qd3 {[%clk 0:00:37]} 35. Qxd3 {[%clk 0:01:13]}  exd3 {[%clk 0:00:37]} 36. Rxe6 {[%clk 0:01:13]}  Re7 {[%clk 0:00:37]} 37. g6+ {[%clk 0:01:07]}  Kg8 {[%clk 0:00:36]} 38. Rxe7 {[%clk 0:00:59]}  Nxe7 {[%clk 0:00:36]} 39. Rd2 {[%clk 0:01:00]}  Nd5 {[%clk 0:00:36]} 40. Rxd3 {[%clk 0:00:59]}  Re8 {[%clk 0:00:37]} 41. Rd2 {[%clk 0:00:59]}  Re3 {[%clk 0:00:36]} 42. Kg2 {[%clk 0:00:59]}  a4 {[%clk 0:00:31]} 43. Kf2 {[%clk 0:00:57]}  Re4 {[%clk 0:00:31]} 44. Re2 {[%clk 0:00:53]}  Nxf4 {[%clk 0:00:22]} 45. Rxe4 {[%clk 0:00:43]}  Nd3+ {[%clk 0:00:22]} 46. Ke3 {[%clk 0:00:42]}  fxe4 {[%clk 0:00:23]} 47. b3 {[%clk 0:00:34]}  a3 {[%clk 0:00:20]} 48. Bd6 {[%clk 0:00:30]}  Nc1 {[%clk 0:00:18]} 49. Bxa3 {[%clk 0:00:30]}  Nxa2 {[%clk 0:00:18]} 50. Bb2 {[%clk 0:00:20]}  b4 {[%clk 0:00:16]} 51. cxb4 {[%clk 0:00:20]}  Nxb4 {[%clk 0:00:16]} 52. Kxe4 {[%clk 0:00:21]}  Kf8 {[%clk 0:00:15]} 53. Ba3 {[%clk 0:00:21]} 1-0


[Site "https://www.chess.com"]

[Event "Titled Tuesday Blitz June 20 Early 2023"]
[White "Arabidze, Meri"]
[Black "arenal72"]
[WhiteFideId "13604040"]
[WhiteElo "2405"]
[BlackElo "2368"]
[Result "1-0"]
[Round "1"]
[TimeControl "180+2"]
[Date "2023.06.20"]
[WhiteClock "0:00:10"]
[BlackClock "0:00:00"]
[Board "135"]

1. d4 {[%clk 0:02:59]}  Nf6 {[%clk 0:02:56]} 2. c4 {[%clk 0:02:59]}  d6 {[%clk 0:02:54]} 3. Nf3 {[%clk 0:02:58]}  g6 {[%clk 0:02:54]} 4. g3 {[%clk 0:02:58]}  Bg7 {[%clk 0:02:52]} 5. Bg2 {[%clk 0:02:59]}  O-O {[%clk 0:02:48]} 6. O-O {[%clk 0:03:00]}  Bf5 {[%clk 0:02:47]} 7. Nc3 {[%clk 0:03:00]}  Ne4 {[%clk 0:02:47]} 8. Bd2 {[%clk 0:03:00]}  Nxc3 {[%clk 0:02:46]} 9. Bxc3 {[%clk 0:03:00]}  Be4 {[%clk 0:02:45]} 10. Bh3 {[%clk 0:03:00]}  c5 {[%clk 0:02:38]} 11. Rc1 {[%clk 0:02:50]}  Bxf3 {[%clk 0:02:32]} 12. exf3 {[%clk 0:02:51]}  cxd4 {[%clk 0:02:31]} 13. Bxd4 {[%clk 0:02:51]}  Bxd4 {[%clk 0:02:31]} 14. Qxd4 {[%clk 0:02:52]}  Nc6 {[%clk 0:02:30]} 15. Qe3 {[%clk 0:02:50]}  Qb6 {[%clk 0:02:25]} 16. Qd2 {[%clk 0:02:30]}  Qd4 {[%clk 0:02:19]} 17. Rfd1 {[%clk 0:02:26]}  Qxd2 {[%clk 0:02:16]} 18. Rxd2 {[%clk 0:02:26]}  Rfd8 {[%clk 0:02:16]} 19. b3 {[%clk 0:02:25]}  Kf8 {[%clk 0:02:14]} 20. f4 {[%clk 0:02:25]}  a5 {[%clk 0:02:10]} 21. Rd5 {[%clk 0:02:09]}  a4 {[%clk 0:02:02]} 22. Rb1 {[%clk 0:02:05]}  axb3 {[%clk 0:02:01]} 23. axb3 {[%clk 0:02:06]}  Ra5 {[%clk 0:01:58]} 24. Bg2 {[%clk 0:02:03]}  Rxd5 {[%clk 0:01:54]} 25. Bxd5 {[%clk 0:02:04]}  e6 {[%clk 0:01:54]} 26. Bxc6 {[%clk 0:01:56]}  bxc6 {[%clk 0:01:53]} 27. b4 {[%clk 0:01:56]}  Rb8 {[%clk 0:01:49]} 28. Kg2 {[%clk 0:01:54]}  Ke7 {[%clk 0:01:48]} 29. Kf3 {[%clk 0:01:53]}  Kd7 {[%clk 0:01:48]} 30. Ke3 {[%clk 0:01:53]}  Ra8 {[%clk 0:01:48]} 31. Rb3 {[%clk 0:01:47]}  Ra4 {[%clk 0:01:31]} 32. g4 {[%clk 0:01:34]}  f5 {[%clk 0:01:29]} 33. f3 {[%clk 0:01:32]}  h5 {[%clk 0:01:27]} 34. h3 {[%clk 0:01:30]}  Ra2 {[%clk 0:01:24]} 35. b5 {[%clk 0:01:28]}  cxb5 {[%clk 0:01:21]} 36. cxb5 {[%clk 0:01:29]}  Kc7 {[%clk 0:01:18]} 37. Rc3+ {[%clk 0:01:28]}  Kd7 {[%clk 0:01:14]} 38. b6 {[%clk 0:01:26]}  Rb2 {[%clk 0:01:13]} 39. Rc7+ {[%clk 0:01:25]}  Kd8 {[%clk 0:01:14]} 40. Rb7 {[%clk 0:01:14]}  hxg4 {[%clk 0:01:04]} 41. hxg4 {[%clk 0:01:11]}  Rb3+ {[%clk 0:00:59]} 42. Kf2 {[%clk 0:01:08]}  Kc8 {[%clk 0:00:56]} 43. Re7 {[%clk 0:01:00]}  e5 {[%clk 0:00:38]} 44. fxe5 {[%clk 0:00:51]}  dxe5 {[%clk 0:00:37]} 45. gxf5 {[%clk 0:00:51]}  gxf5 {[%clk 0:00:30]} 46. Rxe5 {[%clk 0:00:51]}  f4 {[%clk 0:00:26]} 47. Re6 {[%clk 0:00:46]}  Kd7 {[%clk 0:00:20]} 48. Rh6 {[%clk 0:00:41]}  Rb2+ {[%clk 0:00:20]} 49. Ke1 {[%clk 0:00:40]}  Kc8 {[%clk 0:00:17]} 50. Rf6 {[%clk 0:00:35]}  Kd7 {[%clk 0:00:15]} 51. Kd1 {[%clk 0:00:23]}  Ke7 {[%clk 0:00:06]} 52. Rh6 {[%clk 0:00:20]}  Kd7 {[%clk 0:00:06]} 53. Rg6 {[%clk 0:00:16]}  Kd8 {[%clk 0:00:03]} 54. Kc1 {[%clk 0:00:11]}  Rb3 {[%clk 0:00:03]} 55. Kc2 {[%clk 0:00:11]}  Rb5 {[%clk 0:00:00]} 56. Kc3 {[%clk 0:00:10]} 1-0


[Site "https://www.chess.com"]

[Event "Titled Tuesday Blitz June 20 Early 2023"]
[White "Dwilewicz, Katarzyna"]
[Black "Soham Kamotra"]
[WhiteFideId "1148486"]
[BlackFideId "46647490"]
[WhiteElo "2098"]
[BlackElo "2209"]
[Result "0-1"]
[Round "1"]
[TimeControl "180+2"]
[Date "2023.06.20"]
[WhiteClock "0:00:01"]
[BlackClock "0:00:07"]
[Board "136"]

1. e4 {[%clk 0:03:00]}  c6 {[%clk 0:02:59]} 2. d4 {[%clk 0:02:59]}  d5 {[%clk 0:03:00]} 3. Nc3 {[%clk 0:02:59]}  dxe4 {[%clk 0:02:59]} 4. Nxe4 {[%clk 0:02:59]}  Bf5 {[%clk 0:03:00]} 5. Ng3 {[%clk 0:02:59]}  Bg6 {[%clk 0:03:01]} 6. Nh3 {[%clk 0:02:59]}  e6 {[%clk 0:03:01]} 7. Nf4 {[%clk 0:02:59]}  Bd6 {[%clk 0:03:01]} 8. Ngh5 {[%clk 0:02:58]}  Bxf4 {[%clk 0:02:52]} 9. Nxf4 {[%clk 0:02:56]}  Nf6 {[%clk 0:02:51]} 10. c3 {[%clk 0:02:54]}  Nbd7 {[%clk 0:02:50]} 11. Bc4 {[%clk 0:02:53]}  O-O {[%clk 0:02:47]} 12. O-O {[%clk 0:02:47]}  e5 {[%clk 0:02:47]} 13. Nxg6 {[%clk 0:02:46]}  hxg6 {[%clk 0:02:47]} 14. Bb3 {[%clk 0:02:41]}  Qc7 {[%clk 0:02:44]} 15. dxe5 {[%clk 0:02:34]}  Nxe5 {[%clk 0:02:40]} 16. Bf4 {[%clk 0:02:34]}  Rfe8 {[%clk 0:02:36]} 17. Re1 {[%clk 0:02:30]}  Rad8 {[%clk 0:02:36]} 18. Qe2 {[%clk 0:02:18]}  Nfd7 {[%clk 0:02:12]} 19. Rad1 {[%clk 0:02:12]}  Qc8 {[%clk 0:01:41]} 20. Qc2 {[%clk 0:01:57]}  Ng4 {[%clk 0:01:28]} 21. h3 {[%clk 0:01:53]}  Ngf6 {[%clk 0:01:26]} 22. Qxg6 {[%clk 0:01:49]}  Nd5 {[%clk 0:01:13]} 23. Qg3 {[%clk 0:01:37]}  Rxe1+ {[%clk 0:01:05]} 24. Rxe1 {[%clk 0:01:36]}  Nc5 {[%clk 0:00:57]} 25. Bh6 {[%clk 0:01:24]}  g6 {[%clk 0:00:57]} 26. Bc2 {[%clk 0:01:16]}  Re8 {[%clk 0:00:51]} 27. Re5 {[%clk 0:01:08]}  Kh7 {[%clk 0:00:37]} 28. Rh5 {[%clk 0:00:53]}  Ne4 {[%clk 0:00:23]} 29. Bxe4 {[%clk 0:00:39]}  Rxe4 {[%clk 0:00:24]} 30. Be3+ {[%clk 0:00:35]}  gxh5 {[%clk 0:00:18]} 31. Qf3 {[%clk 0:00:34]}  Qe6 {[%clk 0:00:13]} 32. Qxh5+ {[%clk 0:00:33]}  Kg8 {[%clk 0:00:14]} 33. Qg5+ {[%clk 0:00:32]}  Kh7 {[%clk 0:00:12]} 34. Qh5+ {[%clk 0:00:32]}  Kg7 {[%clk 0:00:12]} 35. Qg5+ {[%clk 0:00:31]}  Qg6 {[%clk 0:00:12]} 36. Bd4+ {[%clk 0:00:30]}  f6 {[%clk 0:00:12]} 37. Qd2 {[%clk 0:00:24]}  Kf7 {[%clk 0:00:11]} 38. f3 {[%clk 0:00:21]}  Re8 {[%clk 0:00:11]} 39. c4 {[%clk 0:00:19]}  Ne7 {[%clk 0:00:10]} 40. Bc5 {[%clk 0:00:19]}  Qf5 {[%clk 0:00:09]} 41. b4 {[%clk 0:00:18]}  Qe6 {[%clk 0:00:09]} 42. Qd3 {[%clk 0:00:14]}  Nf5 {[%clk 0:00:09]} 43. g4 {[%clk 0:00:11]}  Ng7 {[%clk 0:00:09]} 44. Bf2 {[%clk 0:00:08]}  Re7 {[%clk 0:00:08]} 45. Kg2 {[%clk 0:00:07]}  Rd7 {[%clk 0:00:09]} 46. Qh7 {[%clk 0:00:06]}  Rd2 {[%clk 0:00:09]} 47. Qh6 {[%clk 0:00:05]}  Qe2 {[%clk 0:00:09]} 48. Qh4 {[%clk 0:00:05]}  Rxa2 {[%clk 0:00:09]} 49. Qg3 {[%clk 0:00:05]}  Qxf2+ {[%clk 0:00:09]} 50. Qxf2 {[%clk 0:00:05]}  Rxf2+ {[%clk 0:00:10]} 51. Kxf2 {[%clk 0:00:06]}  b6 {[%clk 0:00:11]} 52. h4 {[%clk 0:00:06]}  a5 {[%clk 0:00:11]} 53. c5 {[%clk 0:00:04]}  bxc5 {[%clk 0:00:05]} 54. bxa5 {[%clk 0:00:04]}  Ne6 {[%clk 0:00:03]} 55. a6 {[%clk 0:00:05]}  Nc7 {[%clk 0:00:04]} 56. a7 {[%clk 0:00:05]}  Na8 {[%clk 0:00:05]} 57. Ke3 {[%clk 0:00:06]}  Nb6 {[%clk 0:00:05]} 58. Kd3 {[%clk 0:00:05]}  Kg6 {[%clk 0:00:06]} 59. f4 {[%clk 0:00:05]}  Kg7 {[%clk 0:00:06]} 60. f5 {[%clk 0:00:03]}  Kh6 {[%clk 0:00:06]} 61. g5+ {[%clk 0:00:03]}  fxg5 {[%clk 0:00:06]} 62. f6 {[%clk 0:00:04]}  gxh4 {[%clk 0:00:06]} 63. f7 {[%clk 0:00:02]}  Kg7 {[%clk 0:00:07]} 64. Ke4 {[%clk 0:00:01]}  Kxf7 {[%clk 0:00:07]} 0-1


[Site "https://www.chess.com"]

[Event "Titled Tuesday Blitz June 20 Early 2023"]
[White "Zochowski, Kacper"]
[Black "Fajdetic, Hrvoje"]
[WhiteFideId "1125494"]
[BlackFideId "14501945"]
[WhiteElo "2235"]
[BlackElo "2185"]
[Result "0-1"]
[Round "1"]
[TimeControl "180+2"]
[Date "2023.06.20"]
[WhiteClock "0:00:00"]
[BlackClock "0:00:19"]
[Board "139"]

1. Nf3 {[%clk 0:03:00]}  f5 {[%clk 0:02:59]} 2. d3 {[%clk 0:03:00]}  d6 {[%clk 0:02:58]} 3. e4 {[%clk 0:03:01]}  e5 {[%clk 0:02:58]} 4. exf5 {[%clk 0:03:00]}  Bxf5 {[%clk 0:02:59]} 5. Nc3 {[%clk 0:03:01]}  Nf6 {[%clk 0:02:59]} 6. d4 {[%clk 0:03:01]}  exd4 {[%clk 0:02:56]} 7. Nxd4 {[%clk 0:03:01]}  Bd7 {[%clk 0:02:55]} 8. Bd3 {[%clk 0:02:54]}  Be7 {[%clk 0:02:48]} 9. O-O {[%clk 0:02:54]}  O-O {[%clk 0:02:47]} 10. Bg5 {[%clk 0:02:55]}  Nc6 {[%clk 0:02:47]} 11. Nf5 {[%clk 0:02:54]}  Ne5 {[%clk 0:02:40]} 12. Nxe7+ {[%clk 0:02:53]}  Qxe7 {[%clk 0:02:41]} 13. Nd5 {[%clk 0:02:48]}  Qf7 {[%clk 0:02:22]} 14. Nxf6+ {[%clk 0:02:35]}  gxf6 {[%clk 0:02:21]} 15. Bh6 {[%clk 0:02:36]}  Rfe8 {[%clk 0:02:16]} 16. h3 {[%clk 0:02:31]}  Kh8 {[%clk 0:02:16]} 17. Bf4 {[%clk 0:01:55]}  Bc6 {[%clk 0:02:06]} 18. Bg3 {[%clk 0:01:51]}  Rg8 {[%clk 0:02:00]} 19. Qd2 {[%clk 0:01:51]}  Qd5 {[%clk 0:01:55]} 20. f3 {[%clk 0:01:41]}  Rxg3 {[%clk 0:01:54]} 21. Qf4 {[%clk 0:01:42]}  Nxd3 {[%clk 0:01:22]} 22. Qxg3 {[%clk 0:01:37]}  Qd4+ {[%clk 0:01:19]} 23. Kh1 {[%clk 0:01:36]}  Rg8 {[%clk 0:01:19]} 24. c3 {[%clk 0:01:26]}  Qf4 {[%clk 0:00:41]} 25. Qxf4 {[%clk 0:01:17]}  Nxf4 {[%clk 0:00:42]} 26. g4 {[%clk 0:01:06]}  Nxh3 {[%clk 0:00:40]} 27. Kh2 {[%clk 0:01:06]}  Ng5 {[%clk 0:00:39]} 28. Kg3 {[%clk 0:01:06]}  Re8 {[%clk 0:00:33]} 29. Rae1 {[%clk 0:01:06]}  Re5 {[%clk 0:00:26]} 30. f4 {[%clk 0:01:06]}  Ne4+ {[%clk 0:00:26]} 31. Kh4 {[%clk 0:01:06]}  Re7 {[%clk 0:00:23]} 32. Re2 {[%clk 0:01:05]}  Bb5 {[%clk 0:00:21]} 33. Rfe1 {[%clk 0:01:01]}  Bxe2 {[%clk 0:00:21]} 34. Rxe2 {[%clk 0:01:02]}  Kg7 {[%clk 0:00:20]} 35. c4 {[%clk 0:00:57]}  c6 {[%clk 0:00:19]} 36. b3 {[%clk 0:00:57]}  d5 {[%clk 0:00:19]} 37. cxd5 {[%clk 0:00:58]}  cxd5 {[%clk 0:00:20]} 38. Re3 {[%clk 0:00:58]}  d4 {[%clk 0:00:20]} 39. Rd3 {[%clk 0:00:58]}  Rd7 {[%clk 0:00:20]} 40. g5 {[%clk 0:00:59]}  fxg5+ {[%clk 0:00:19]} 41. Kg4 {[%clk 0:00:00]}  Nf2+ {[%clk 0:00:19]} 0-1


[Site "https://www.chess.com"]

[Event "Titled Tuesday Blitz June 20 Early 2023"]
[White "Spichkin, Alexander"]
[Black "Munkhgal, Gombosuren"]
[WhiteFideId "4144074"]
[BlackFideId "4901266"]
[WhiteElo "1986"]
[BlackElo "2528"]
[Result "0-1"]
[Round "1"]
[TimeControl "180+2"]
[Date "2023.06.20"]
[WhiteClock "0:01:14"]
[BlackClock "0:01:42"]
[Board "140"]

1. f4 {[%clk 0:02:59]}  d6 {[%clk 0:02:58]} 2. Nf3 {[%clk 0:03:00]}  g6 {[%clk 0:02:59]} 3. e4 {[%clk 0:02:58]}  Bg7 {[%clk 0:02:59]} 4. Be2 {[%clk 0:02:57]}  Nf6 {[%clk 0:03:00]} 5. O-O {[%clk 0:02:57]}  Nxe4 {[%clk 0:03:00]} 6. d3 {[%clk 0:02:57]}  Nf6 {[%clk 0:03:00]} 7. Nc3 {[%clk 0:02:58]}  O-O {[%clk 0:03:00]} 8. Qe1 {[%clk 0:02:58]}  b6 {[%clk 0:03:00]} 9. Qh4 {[%clk 0:02:59]}  Bb7 {[%clk 0:02:59]} 10. Bd2 {[%clk 0:02:59]}  Nbd7 {[%clk 0:02:59]} 11. Rae1 {[%clk 0:03:00]}  a6 {[%clk 0:02:54]} 12. Bd1 {[%clk 0:02:59]}  b5 {[%clk 0:02:55]} 13. Bc1 {[%clk 0:02:53]}  c5 {[%clk 0:02:55]} 14. Ne4 {[%clk 0:02:53]}  Nxe4 {[%clk 0:02:55]} 15. dxe4 {[%clk 0:02:53]}  e5 {[%clk 0:02:50]} 16. Qh3 {[%clk 0:02:51]}  exf4 {[%clk 0:02:46]} 17. Bxf4 {[%clk 0:02:51]}  Ne5 {[%clk 0:02:47]} 18. Ng5 {[%clk 0:02:47]}  h6 {[%clk 0:02:45]} 19. Nf3 {[%clk 0:02:46]}  Nxf3+ {[%clk 0:02:41]} 20. Bxf3 {[%clk 0:02:46]}  g5 {[%clk 0:02:41]} 21. Bc1 {[%clk 0:02:44]}  Qe7 {[%clk 0:02:26]} 22. c3 {[%clk 0:02:42]}  b4 {[%clk 0:02:25]} 23. cxb4 {[%clk 0:02:26]}  cxb4 {[%clk 0:02:26]} 24. Qg3 {[%clk 0:02:26]}  Qe5 {[%clk 0:02:25]} 25. Qh3 {[%clk 0:02:19]}  Rac8 {[%clk 0:02:20]} 26. Bg4 {[%clk 0:02:17]}  Rc2 {[%clk 0:02:18]} 27. Bf5 {[%clk 0:02:15]}  Rfc8 {[%clk 0:02:14]} 28. Bxc8 {[%clk 0:02:08]}  Bxc8 {[%clk 0:02:14]} 29. Qd3 {[%clk 0:02:05]}  Rc7 {[%clk 0:02:08]} 30. b3 {[%clk 0:01:55]}  Be6 {[%clk 0:02:06]} 31. Be3 {[%clk 0:01:52]}  Rc3 {[%clk 0:02:05]} 32. Qxa6 {[%clk 0:01:50]}  Qxe4 {[%clk 0:01:55]} 33. Qa7 {[%clk 0:01:40]}  Rc2 {[%clk 0:01:54]} 34. Rf2 {[%clk 0:01:37]}  Rc3 {[%clk 0:01:51]} 35. Rff1 {[%clk 0:01:30]}  Rxe3 {[%clk 0:01:47]} 36. Rxe3 {[%clk 0:01:27]}  Bd4 {[%clk 0:01:46]} 37. Qb8+ {[%clk 0:01:22]}  Kg7 {[%clk 0:01:46]} 38. Qxd6 {[%clk 0:01:21]}  Bxe3+ {[%clk 0:01:44]} 39. Kh1 {[%clk 0:01:21]}  Bf4 {[%clk 0:01:43]} 40. Rd1 {[%clk 0:01:14]}  Bxd6 {[%clk 0:01:42]} 0-1


[Site "https://www.chess.com"]

[Event "Titled Tuesday Blitz June 20 Early 2023"]
[White "Ovezdurdyyeva, Jemal"]
[Black "Ashraf, Artin"]
[WhiteFideId "14001888"]
[BlackFideId "22514805"]
[WhiteElo "2069"]
[BlackElo "2224"]
[Result "0-1"]
[Round "1"]
[TimeControl "180+2"]
[Date "2023.06.20"]
[WhiteClock "0:00:18"]
[BlackClock "0:00:06"]
[Board "144"]

1. e4 {[%clk 0:03:00]}  c5 {[%clk 0:02:53]} 2. Nf3 {[%clk 0:03:00]}  d6 {[%clk 0:02:52]} 3. d4 {[%clk 0:02:59]}  cxd4 {[%clk 0:02:53]} 4. Nxd4 {[%clk 0:03:00]}  Nf6 {[%clk 0:02:50]} 5. Nc3 {[%clk 0:03:00]}  a6 {[%clk 0:02:50]} 6. Bc4 {[%clk 0:03:01]}  e6 {[%clk 0:02:48]} 7. O-O {[%clk 0:02:59]}  b5 {[%clk 0:02:47]} 8. Bb3 {[%clk 0:02:56]}  Bb7 {[%clk 0:02:40]} 9. Qe2 {[%clk 0:02:48]}  Be7 {[%clk 0:02:06]} 10. f3 {[%clk 0:02:39]}  Nbd7 {[%clk 0:02:04]} 11. Be3 {[%clk 0:02:30]}  Rc8 {[%clk 0:02:02]} 12. Bxe6 {[%clk 0:02:19]}  fxe6 {[%clk 0:02:01]} 13. Nxe6 {[%clk 0:02:19]}  Qa5 {[%clk 0:02:01]} 14. Nxg7+ {[%clk 0:02:19]}  Kf7 {[%clk 0:01:59]} 15. Nf5 {[%clk 0:02:18]}  b4 {[%clk 0:01:42]} 16. Nd5 {[%clk 0:02:06]}  Bxd5 {[%clk 0:00:51]} 17. exd5 {[%clk 0:01:57]}  Qxd5 {[%clk 0:00:49]} 18. Nxe7 {[%clk 0:01:56]}  Kxe7 {[%clk 0:00:49]} 19. Qxa6 {[%clk 0:01:19]}  Rxc2 {[%clk 0:00:40]} 20. Rad1 {[%clk 0:01:17]}  Rg8 {[%clk 0:00:20]} 21. Bf2 {[%clk 0:01:08]}  Qxf3 {[%clk 0:00:04]} 22. Qxd6+ {[%clk 0:00:24]}  Kf7 {[%clk 0:00:04]} 23. g3 {[%clk 0:00:25]}  Rxf2 {[%clk 0:00:03]} 24. Rxf2 {[%clk 0:00:23]}  Qxf2+ {[%clk 0:00:04]} 25. Kxf2 {[%clk 0:00:22]}  Ne4+ {[%clk 0:00:04]} 26. Ke3 {[%clk 0:00:21]}  Nxd6 {[%clk 0:00:05]} 27. Rxd6 {[%clk 0:00:22]}  Ne5 {[%clk 0:00:06]} 28. Rb6 {[%clk 0:00:18]}  Nc4+ {[%clk 0:00:06]} 0-1


[Site "https://www.chess.com"]